Cogmind - Beta 15 @@@ ROGUE MODE // 2025.07.01 @ 01:53:08 Player: 7604 Result: Destroyed by Y-72 Warden with Railgun Performance ------------- Evolutions (7) 3500 Regions Visited (20) 4000 Robots Destroyed (218) 1090 Value Destroyed (13599) 13599 Prototype IDs (83) 1660 Alien Tech Used (5) 1000 Bonus (7819) 7819 TOTAL SCORE: 32668 Bonus ------- High Alert Combat Kills 449 Follower Combat Kills 1303 Entered Garrisons 200 Network Hubs Disabled 200 Acquired ECA 300 Met Zhirov 300 Met R17 at Cetus 500 Read Decrypted Archives 300 Used Core Reset Matrix 3000 Met R17 at Research 2000 Friendly Fire -733 Cogmind --------- Core Integrity 0/1300 Matter 260/300 Energy 39/100 System Corruption 0% Temperature Cool (18) Movement Treading (153) Location -3/Protoforge Parts ------- > --- POWER (2) -------- (None) > --- PROPULSION (5) --- Treaded Armored-Reflex Exoskeleton > --- UTILITY (9) ------ Scrap Engine High-capacity Storage Unit Advanced Sensor Array Experimental Signal Interpreter Centrium Medium Armor Plating Centrium Medium Armor Plating Experimental Force Field > --- WEAPON (5) ------- Core Cannon > --- INVENTORY (20) --- Advanced Cryofiber Web Experimental Coolant Injector Advanced Matter Compressor (400) Improved Kinecellerator Advanced Reaction Control System Improved Phase Shifter Improved Shock Absorption System EM Shield Advanced Force Field Advanced Force Field Advanced Recalibrator Subatomic Replicator Multitool Peak State ------------ > --- POWER ------------ Micro Antimatter Reactor Quantum Reactor > --- PROPULSION ------- Treaded Armored-Reflex Exoskeleton > --- UTILITY ---------- Armored Scrap Engine Experimental Coolant Injector High-capacity Storage Unit Advanced Sensor Array Experimental Signal Interpreter Advanced Target Analyzer Centrium Light Armor Plating Centrium Medium Armor Plating > --- WEAPON ----------- Hypercooled Linear Accelerator Hypercooled Linear Accelerator Hypercooled Linear Accelerator Accelerated Linear Construct/C Power Sword > --- INVENTORY -------- Advanced Cryofiber Web Improved Matter Compressor Improved Kinecellerator Advanced Reaction Control System Improved Phase Shifter Layered Medium Armor Plating Centrium Medium Armor Plating Centrium Medium Armor Plating Improved Shock Absorption System EM Shield Advanced Force Field Advanced Force Field Advanced Recalibrator Subatomic Replicator Core Cannon Sigix Terminator Multitool [Rating: 184] Favorites ----------- Power Constructs Engine Light Angular Momentum Engine Power Core Micro Nuclear Core Reactor Constructs Propulsion Constructs Treads Constructs Leg Aluminum Leg Wheel Subdweller Monowheel Hover Unit Aerolev Unit Flight Unit Improved Flight Unit Utility High-capacity Storage Unit Device Armored Scrap Engine Storage High-capacity Storage Unit Processor Advanced Signal Interpreter Protection Centrium Medium Armor Plating Weapon Heavy Particle Cannon Energy Gun Heavy Riot Gun Energy Cannon Heavy Particle Cannon Ballistic Gun KE Penetrator Ballistic Cannon Constructs Launcher Advanced EMP Blaster Special Weapon Improved Remote Datajack Impact Weapon Power Maul Slashing Weapon Ionic Axe Special Melee Weapon Improved Datajack Build | -11 -10 -10 -8 -8 -8 -6 -6 -5 -5 -5 -5 -5 -4 -4 -4 -4 -3 -3 -3 -3 ------- Run | Yrd Mat Sub Mat Sto Rec Fac Gar Fac Ext Cet Arc Hub Fac Upp Upp Zhi Pro Res Qua Frg Slots Evolved 14 | . . . 4 . . 4 . 2 . . . . 2 . . . . 2 . . Power 1 | . . . . . . 1 . . . . . . . . . . . . . . Propulsion 3 | . . . 3 . . . . . . . . . . . . . . . . . Utility 7 | . . . 1 . . 2 . 2 . . . . . . . . . 2 . . Weapon 3 | . . . . . . 1 . . . . . . 2 . . . . . . . Parts Attached 207 | 6 12 7 27 20 2 8 17 15 3 5 . 12 8 7 5 2 4 16 30 1 Power 27 | 1 1 . 2 2 . 2 3 1 . . . 2 1 1 1 1 2 3 4 . Engine 10 | 1 1 . . 2 . 2 3 . . . . 1 . . . . . . . . Core 8 | . . . 2 . . . . 1 . . . 1 1 1 . . 1 . 1 . Reactor 9 | . . . . . . . . . . . . . . . 1 1 1 3 3 . Propulsion 27 | 2 1 3 9 12 . . . . . . . . . . . . . . . . Treads 14 | . . . 5 9 . . . . . . . . . . . . . . . . Leg 7 | 2 1 . 4 . . . . . . . . . . . . . . . . . Wheel 3 | . . 3 . . . . . . . . . . . . . . . . . . Hover 1 | . . . . 1 . . . . . . . . . . . . . . . . Flight 2 | . . . . 2 . . . . . . . . . . . . . . . . Utility 82 | 1 1 1 6 2 2 2 10 9 2 2 . 7 2 2 3 . 2 7 21 . Device 41 | 1 . . 4 . 1 1 5 7 . 1 . . . 1 2 . 2 1 15 . Storage 8 | . 1 1 1 . 1 . . . . . . 2 . . . . . 1 1 . Processor 11 | . . . . . . 1 . 1 . . . 3 1 . 1 . . 4 . . Hackware . | . . . . . . . . . . . . . . . . . . . . . Protection 22 | . . . 1 2 . . 5 1 2 1 . 2 1 1 . . . 1 5 . Artifact . | . . . . . . . . . . . . . . . . . . . . . Weapon 71 | 2 9 3 10 4 . 4 4 5 1 3 . 3 5 4 1 1 . 6 5 1 Energy Gun 14 | 1 . . 3 2 . 1 1 . . 1 . . 1 2 . 1 . 1 . . Energy Cannon 13 | . . 2 3 . . 1 1 2 . . . . 3 . . . . . 1 . Ballistic Gun 14 | 1 1 . 2 1 . . . . . 2 . 1 1 2 . . . 3 . . Ballistic Cannon 14 | . 5 . 2 . . . . 1 . . . . . . 1 . . 1 4 . Launcher 8 | . 3 1 . 1 . . 1 1 . . . . . . . . . . . 1 Special Weapon 3 | . . . . . . 1 . . 1 . . 1 . . . . . . . . Impact Weapon 1 | . . . . . . 1 . . . . . . . . . . . . . . Slashing Weapon 3 | . . . . . . . . 1 . . . 1 . . . . . 1 . . Piercing Weapon . | . . . . . . . . . . . . . . . . . . . . . Special Melee Weapon 1 | . . . . . . . 1 . . . . . . . . . . . . . Unidentified Prototypes 38 | . . . 4 8 1 3 . 3 . 3 . 3 . . . 2 . 2 9 . Corrupted Parts 2 | . . . . . . . 1 . . . . . . . . . 1 . . . System Corruption 13 | . . . . . . . 10 . . . . . . . . . 3 . . . Parts Lost 64 | . 1 1 4 1 . 2 11 1 1 1 . 6 1 3 3 . 3 8 13 4 Power 12 | . 1 . 1 . . . 3 . . . . 2 . . . . 1 1 2 1 Propulsion 4 | . . . 2 . . . 1 . . . . . . . . . . . . 1 Utility 24 | . . 1 . . . 1 3 1 . 1 . 2 1 . 1 . 1 4 7 1 Weapon 24 | . . . 1 1 . 1 4 . 1 . . 2 . 3 2 . 1 3 4 1 Highest Loss Streak 8 | . 1 1 4 1 . 1 6 1 1 1 . 5 1 3 2 . 3 8 4 4 To Critical Strikes 1 | . . . . . . . . . . . . 1 . . . . . . . . Average Backups 18 | . 9 15 24 24 19 19 17 17 18 18 19 19 16 18 18 19 19 17 17 15 Power 1 | . . 1 2 2 . . . . . . 2 . . . 1 . . 1 1 . Propulsion 2 | . . 2 3 4 3 1 2 1 2 1 1 . 2 . 1 2 3 2 . . Utility 7 | . . . 5 5 5 6 6 8 10 9 9 9 8 11 12 12 12 9 12 11 Weapon 5 | . 6 10 12 10 7 8 6 4 3 5 5 5 2 1 . . . 1 1 1 Tool/Special . | . . . . . . . . . . . . . . . . . . . . . Unused Backups 219 | . 1 . 12 6 79 8 20 27 9 7 . 7 11 . . 2 3 17 8 2 Power 23 | . . . 4 . 7 1 . 1 1 . . 3 . . . . . 4 2 . Propulsion 79 | . 1 . 1 2 24 3 11 12 2 2 . 1 6 . . 1 3 6 4 . Utility 43 | . . . 5 2 27 2 . . 1 3 . 1 . . . . . 1 . 1 Weapon 66 | . . . 2 1 16 2 9 14 5 2 . 2 5 . . . . 6 2 . Tool/Special 8 | . . . . 1 5 . . . . . . . . . . 1 . . . 1 Average Slot Usage (%) 68 | . 98 86 97 99 65 55 55 58 58 57 58 59 55 53 57 56 60 53 61 46 Engine 3 | . 13 14 . 3 8 9 9 2 . . . 4 . . . . . . . . Core 2 | . . . 7 5 . . . 3 5 5 5 1 5 5 5 4 6 2 . . Treads 11 | . . . 32 44 15 2 . 2 5 5 5 5 5 5 5 5 5 1 1 4 Leg 2 | . 27 1 9 . . . . . . . . . . . . . . 2 2 . Wheel 1 | . . 26 1 . 4 . . . . . . . . . . . . . . . Device 14 | . 13 1 12 16 10 18 16 20 17 17 17 14 17 14 14 15 14 11 14 14 Storage 6 | . 13 14 9 9 9 6 6 5 5 5 5 5 5 5 5 5 5 4 4 4 Processor 3 | . . . . . . 1 . 4 5 5 5 10 5 5 9 10 10 12 9 4 Protection 2 | . . . 5 . . . 2 2 5 5 5 2 1 5 . . . 3 5 8 Energy Gun 1 | . 2 . 2 . . . . 1 . . . . 1 3 . 2 5 2 . . Energy Cannon 6 | . . 12 9 17 14 1 1 5 5 4 . . 8 1 . . . . . . Ballistic Gun 1 | . 2 . 3 . . . 1 . . 4 1 . 2 3 3 . . 2 1 . Ballistic Cannon 3 | . 23 9 2 . 1 6 3 . 1 . 5 4 . . 4 5 3 . 10 3 Slashing Weapon 1 | . . . . . . . . 1 . . . 2 . 3 5 5 5 3 2 . Peak Build Rating 184 | 6 8 15 30 33 48 65 73 100 101 107 117 114 122 109 107 101 113 133 184 157 Average Rating 73 | 3 7 11 27 30 40 58 65 83 99 102 115 107 103 89 93 96 102 113 156 131 On Entrance 74 | . 6 7 15 28 32 47 60 70 100 100 117 115 104 107 84 97 101 111 131 128 Naked Turns . | . . . . . . . . . . . . . . . . . . . . . Heaviest Build 137 | 6 20 99 107 108 104 68 87 98 96 93 89 86 105 89 92 86 96 110 137 105 Greatest Support 215 | 20 20 40 100 100 120 120 102 74 71 182 182 182 182 100 100 100 112 215 207 132 Greatest Overweight (x) 7 | . 1 4 4 1 7 . 1 1 1 1 . . . . . . . . 1 . Average Overweight (x) . | . . 2 . . 1 . . 1 1 . . . . . . . . . . . Largest Inventory Capacity 25 | 5 10 25 25 25 25 20 20 20 20 20 20 20 20 20 20 20 20 20 20 20 Average Capacity 21 | 5 9 24 25 25 24 20 20 20 20 20 20 20 20 20 20 20 20 20 20 20 Most Carried 25 | 2 10 24 25 25 25 20 20 20 20 20 20 20 20 20 20 20 20 20 20 19 Average Carried 19 | . 9 16 24 24 19 19 17 18 19 19 20 19 16 18 18 19 19 17 19 17 Final Capacity 25 | 5 10 25 25 25 20 20 20 20 20 20 20 20 20 20 20 20 20 20 20 20 Final Carried 25 | 2 9 24 25 25 20 20 20 18 19 20 20 15 13 19 20 20 19 19 19 13 Scrap Engine Consumption 334 | . . . . . 104 9 32 44 15 9 . 11 26 7 1 5 5 47 18 1 Constructs Created 10 | . . . . . 3 . 3 . . . . 1 1 . . . . 1 1 . Constructs Modified 144 | . . . . . 46 2 11 22 6 5 . 3 12 5 . 3 2 18 9 . Class Distribution -------------------- 27% | Construct 18% | Scavenger-Mutant 18% | Commander-Construct 13% | Mutant 6% | Commander-Mutant 5% | Scavenger-Tank 4% | Assassin Dominant Class ---------------- Mutant | -10/Materials Scavenger-Mutant | -10/Subcaves Scavenger-Mutant | -8/Materials Scavenger-Mutant | -8/Storage Commander-Construct | -8/Recycling Construct | -6/Factory Construct | -6/Garrison Construct | -5/Factory Commander-Construct | -5/Extension Construct | -5/Cetus Construct | -5/Archives Construct | -5/Hub_04(d) Construct | -4/Factory Construct | -4/Upper Caves Assassin | -4/Upper Caves Mutant | -4/Zhirov Assassin | -3/Proximity Caves Mutant | -3/Research Scavenger-Tank | -3/Quarantine Mutant | -3/Protoforge Resources | -11 -10 -10 -8 -8 -8 -6 -6 -5 -5 -5 -5 -5 -4 -4 -4 -4 -3 -3 -3 -3 ----------- Run | Yrd Mat Sub Mat Sto Rec Fac Gar Fac Ext Cet Arc Hub Fac Upp Upp Zhi Pro Res Qua Frg Matter Collected 9204 | 265 424 315 552 610 20 166 676 423 373 225 . 650 475 755 407 103 208 308 2249 . Remotely . | . . . . . . . . . . . . . . . . . . . . . Salvage Created 10966 | 70 365 186 626 911 838 198 951 642 1176 562 . 941 590 524 560 97 108 729 892 . Parts 497 | 4 25 13 30 52 25 6 32 35 44 28 . 45 36 24 12 4 6 29 47 . Haulers Intercepted 11 | . 2 . 2 2 . 1 . . . . . 2 . . . . . 2 . . Recyclers Shooed 5 | . . . 1 . 1 . . 1 1 . . . . . . . . 1 . . Parts Field Recycled . | . . . . . . . . . . . . . . . . . . . . . Retrieved Matter . | . . . . . . . . . . . . . . . . . . . . . Parts Self-Destructed 38 | . . 9 . . . . . . . . . . . 15 8 . 6 . . . Prevented 9 | . . . . . . . . . . . . . . 6 . 2 1 . . . Kills | -11 -10 -10 -8 -8 -8 -6 -6 -5 -5 -5 -5 -5 -4 -4 -4 -4 -3 -3 -3 -3 ------- Run | Yrd Mat Sub Mat Sto Rec Fac Gar Fac Ext Cet Arc Hub Fac Upp Upp Zhi Pro Res Qua Frg Combat Hostiles Destroyed 173 | 1 17 5 12 19 . 1 15 14 17 8 . 11 8 9 5 . 3 5 16 7 Melee 13 | . . . . . . . . 2 . . . . . . . . . 3 8 . Guns 25 | 1 2 . 3 . . . 3 . . 2 . 1 2 4 3 . 2 2 . . Cannons 83 | . 6 1 9 16 . . 3 6 12 6 . 7 4 2 2 . 1 . 8 . AOE 41 | . 9 4 . 3 . 1 3 4 5 . . 3 . 2 . . . . . 7 Classes Destroyed 21 | 2 4 2 2 1 1 1 1 2 . . . 1 . 2 . . . 1 1 . Worker 3 | . . . . . . . . 1 . . . 2 . . . . . . . . Builder 2 | . 1 . . . . . . . 1 . . . . . . . . . . . Tunneler 2 | 1 . . 1 . . . . . . . . . . . . . . . . . Hauler 11 | . 2 . 2 2 . 1 . . . . . 2 . . . . . 2 . . Recycler 11 | . . . . . 8 . . . 2 . . . . . . . . 1 . . Operator 4 | . . . 1 1 . . . . . . . . . . . . . . 1 1 Watcher 10 | . 2 . . 1 . . . 1 . 2 . 1 . . . . . . 1 2 Swarmer 25 | . 9 . . 4 . . . 4 5 . . . . . . . 3 . . . Grunt 61 | 1 8 . 11 7 . 1 8 1 6 . . 7 . 5 3 . . 2 1 . Brawler 1 | . . . . . . . . . . . . . . 1 . . . . . . Duelist 2 | . . . . 1 . . . . . . . . . . . . . 1 . . Sentry 23 | . . . 1 7 . . 3 3 5 . . 1 2 1 . . . . . . Specialist 2 | . . . . . . . . . . . . 2 . . . . . . . . Hunter 12 | . . . . . . 1 1 1 . . . 1 2 2 2 . . . 2 . Programmer 12 | . . . . . . . . 5 . . . . 4 . . . . . 3 . Behemoth 6 | . . . . . . . 3 . 1 . . . . . . . . 1 . 1 Cetus Guard 8 | . . . . . . . . . . 8 . . . . . . . . . . Quarantine Guard 9 | . . . . . . . . . . . . . . . . . . . 9 . Hotshot 6 | . . . . . . . . . . . . . . . . . . . . 6 Striker 1 | . . . . . . . . . . . . . . . . . . 1 . . Fortress 1 | . . . . . . . . . . . . . . . . . . . 1 . Artisan 1 | . . 1 . . . . . . . . . . . . . . . . . . Subdweller 5 | . . 5 . . . . . . . . . . . . . . . . . . Samaritan 2 | . . . . . . . . . . . . . . 1 1 . . . . . Best Kill Streak 10 | 2 7 2 5 4 2 1 6 6 7 5 . 6 2 3 2 . 2 2 4 10 Combat Bots Only 7 | 1 5 2 5 4 . 1 6 6 7 4 . 4 2 3 2 . 2 2 3 7 Max Kills in Single Turn 10 | 1 2 2 1 2 1 2 2 3 5 2 . 4 1 2 1 . 1 1 1 10 Gunslinging . | . . . . . . . . . . . . . . . . . . . . . Exploded 7 | . 2 2 . 1 . 1 2 3 5 . . 2 . 1 . . . . . 7 Melee 1 | . . . . . . . . 1 . . . . . . . . . 1 1 . Uniques/NPCs Destroyed 1 | . . . . . . . . . 1 . . . . . . . . . . . A7 (-5/Extension) Combat | -11 -10 -10 -8 -8 -8 -6 -6 -5 -5 -5 -5 -5 -4 -4 -4 -4 -3 -3 -3 -3 -------- Run | Yrd Mat Sub Mat Sto Rec Fac Gar Fac Ext Cet Arc Hub Fac Upp Upp Zhi Pro Res Qua Frg Hostile Shots Fired 2131 | 4 61 9 66 87 4 9 554 100 89 70 4 274 132 100 76 . 29 160 248 55 Missed 679 | 2 28 5 22 28 1 4 215 34 25 27 2 60 37 33 20 . 7 52 66 11 Deflected 2 | . . . . . . . . . . . . . . . . . . . 2 . Hits 1452 | 2 33 4 44 59 3 5 339 66 64 43 2 214 95 67 56 . 22 108 182 44 Melee 15 | . . . . 1 . . . . . . . . . . . . . 14 . . Projectile 1437 | 2 33 4 44 58 3 5 339 66 64 43 2 214 95 67 56 . 22 94 182 44 AOE 4 | . . . . . . . . . . . . . . . . . . 4 . . Critical Strikes 66 | . . . 4 . . . . 1 3 6 . 7 8 5 3 . . 4 21 4 Damage Taken 29320 | 23 507 105 722 877 67 198 3686 1266 1029 1143 39 4274 1493 1241 1203 . 361 2346 6372 2368 Core 2904 | . 88 . 117 91 22 3 427 79 85 189 . 345 60 131 52 . 70 264 655 226 Absorbed by Shields 728 | . . . . . . . . . 178 . . . . 91 . . 138 69 252 . Ignored by Resistances 642 | . . . . . . . 41 152 229 . . . 220 . . . . . . . Regen/Repaired (Parts) 9201 | . . . 250 273 . 245 753 634 306 339 . 460 1268 267 100 519 485 1335 1623 344 Core Remaining (%) 62 | 100 . 64 . . 58 . 49 . . . . 30 . . . . 72 . . . Volleys Fired 757 | 5 43 15 44 53 38 12 77 54 80 35 5 39 44 35 36 7 17 24 88 6 Largest 4 | 2 2 2 2 2 2 1 2 2 2 2 1 2 3 2 2 1 1 3 4 1 Hottest 300 | 60 60 160 160 150 150 80 126 170 170 107 7 59 264 103 69 60 60 111 300 24 Shots Fired 1090 | 10 77 20 82 99 43 12 79 73 95 69 5 42 64 37 46 9 16 28 178 6 Gun 259 | 10 16 . 22 . . . 19 5 . 34 . 5 23 29 25 7 6 28 30 . Cannon 750 | . 52 12 60 96 43 9 39 66 79 35 . 29 41 3 21 2 10 . 148 5 Launcher 61 | . 9 8 . 3 . 3 21 2 1 . . 8 . 5 . . . . . 1 Special 20 | . . . . . . . . . 15 . 5 . . . . . . . . . Kinetic 548 | 5 60 . 54 . . 5 14 6 12 48 . 34 33 19 46 2 10 20 175 5 Thermal 369 | 5 8 12 28 96 43 4 18 61 67 21 . . . . . . . 2 3 1 Explosive 38 | . 9 8 . 3 . . 2 2 1 . . 8 . 5 . . . . . . Electromagnetic 115 | . . . . . . 3 45 4 . . . . 31 13 . 7 6 6 . . Robot Hit Streak 40 | 4 12 7 17 18 8 8 30 14 22 12 6 14 18 7 8 10 6 13 40 2 Robot Miss Streak 7 | 1 7 . 4 3 4 2 2 6 3 4 2 2 4 3 3 1 2 4 2 2 Penetration Max 1 | . . . . . . . . . 1 1 . 1 . 1 . . . . . . Secondary Targets 1 | . . . . . . . . . . . . . . . 1 . . . . . Max Gunslinging Chain 1 | . . . . . . . . . . . . . . . 1 . . . . . Shots Hit Robots 782 | 7 44 4 53 62 22 3 75 47 65 54 3 32 34 22 32 7 7 43 164 2 Core Hits 422 | 3 34 9 26 32 11 10 37 23 28 23 . 25 14 24 15 5 7 16 70 10 Critical Kills 8 | . . . 1 . . . . . . 5 . . 1 1 . . . . . . Critical Parts Destroyed 8 | . . . . . . . . . 2 3 . 1 . . . . . . 2 . Critical Strikes 54 | . 1 . 3 . . . 1 5 4 14 . 1 1 1 . . . 4 19 . Burn 6 | . . . . . . . . . 2 4 . . . . . . . . . . Destroy 18 | . . . 1 . . . . . 2 10 . 1 1 1 . . . . 2 . Blast 11 | . 1 . 2 . . . . 1 . . . . . . . . . . 7 . Smash 1 | . . . . . . . 1 . . . . . . . . . . . . . Sever 18 | . . . . . . . . 4 . . . . . . . . . 4 10 . Melee Attacks 168 | . . . . . . 2 32 14 . . . 2 . 5 9 . 1 30 73 . Impact 18 | . . . . . . 2 16 . . . . . . . . . . . . . Slashing 134 | . . . . . . . . 14 . . . 2 . 5 9 . 1 30 73 . Piercing . | . . . . . . . . . . . . . . . . . . . . . Sneak Attacks 25 | . . . . . . . 16 . . . . . . 1 1 . . 7 . . Combat Hostiles . | . . . . . . . . . . . . . . . . . . . . . Follow-up Attacks . | . . . . . . . . . . . . . . . . . . . . . Martial Strikes 1 | . . . . . . . . . . . . . . . . . . . 1 . Damage Inflicted 42866 | 70 1511 513 1311 1821 595 361 2464 2248 3221 2337 . 2886 1245 1399 1331 124 135 1581 6442 11271 Guns 3994 | 70 117 . 371 . . . 421 34 . 803 . 101 326 507 428 88 93 497 138 . Cannons 18069 | . 566 58 940 1579 550 98 666 1535 2716 1534 . 1655 919 108 259 36 42 . 4739 69 Explosions 16395 | . 805 455 . 208 . 254 989 323 393 . . 1092 . 674 . . . . . 11202 Melee 4181 | . . . . . . . 384 356 . . . 38 . 110 644 . . 1084 1565 . Ramming 227 | . 23 . . 34 45 9 4 . 112 . . . . . . . . . . . Kinetic 12308 | 24 615 . 724 . . 98 342 41 601 1482 . 1756 816 272 687 36 42 326 4377 69 Thermal 19555 | 46 68 58 587 1579 550 29 530 1413 2115 855 . . . . . . . 62 500 11163 Explosive 3485 | . 805 455 . 208 . . 131 323 393 . . 457 . 674 . . . . . 39 Electromagnetic 3110 | . . . . . . 225 1073 115 . . . 635 429 343 . 88 93 109 . . Impact 384 | . . . . . . . 384 . . . . . . . . . . . . . Slashing 3797 | . . . . . . . . 356 . . . 38 . 110 644 . . 1084 1565 . Piercing . | . . . . . . . . . . . . . . . . . . . . . Highest Corruption 14 | . . . . . . 2 14 6 9 9 9 11 11 11 11 11 14 . 3 . Average Corruption 8 | . . . . . . 2 11 3 6 9 9 9 8 11 11 11 11 . 2 . Corruption Purged . | . . . . . . . . . . . . . . . . . . . . . Corruption Blocked . | . . . . . . . . . . . . . . . . . . . . . Effects 339 | . . . . . . 5 52 23 32 15 4 18 16 56 39 16 45 . 18 . Message Errors 78 | . . . . . . 1 15 8 9 3 . 2 5 14 5 2 11 . 3 . Matter Fused 92 | . . . . . . 1 14 7 6 4 2 6 3 19 9 5 10 . 6 . Heat Flow Errors 47 | . . . . . . 1 5 . 6 3 1 6 2 5 10 1 6 . 1 . Energy Discharges 32 | . . . . . . . 3 2 4 . . 1 1 5 8 3 3 . 2 . Parts Rejected 5 | . . . . . . . . . 1 1 . 1 . 2 . . . . . . Parts Fused 3 | . . . . . . . . 1 . . . . . . . . 1 . 1 . Data Loss (minor) 43 | . . . . . . 2 12 4 3 2 . 1 2 6 1 . 8 . 2 . Data Loss (major) 15 | . . . . . . . 1 . 1 1 1 1 2 3 1 2 2 . . . Misfires 8 | . . . . . . . . 1 1 . . . . . 2 2 . . 2 . Alerts 9 | . . . . . . . 1 . . . . . 1 . 2 1 3 . 1 . Misdirections 2 | . . . . . . . 1 . . . . . . 1 . . . . . . Weapon Failures 5 | . . . . . . . . . 1 1 . . . 1 1 . 1 . . . Overload Shots . | . . . . . . . . . . . . . . . . . . . . . Overflow Damage 2043 | . 56 . 5 31 27 20 21 64 74 33 . 265 87 . 184 . . 92 417 667 Projectiles 885 | . 14 . 5 . 20 . . 44 63 33 . 228 87 . 10 . . . 381 . Explosions 820 | . 42 . . 31 . 20 . 20 3 . . 37 . . . . . . . 667 Melee 338 | . . . . . 7 . 21 . 8 . . . . . 174 . . 92 36 . Knockbacks 36 | . 8 . 6 2 1 . . . 6 . . 10 2 . . . . . . 1 Impact 6 | . 1 . . 2 1 . . . 2 . . . . . . . . . . . Kinetic 29 | . 7 . 6 . . . . . 3 . . 10 2 . . . . . . 1 Secondary 1 | . . . . . . . . . 1 . . . . . . . . . . . Self-Inflicted Damage 1552 | . 93 14 . 40 . 122 261 56 . . . 99 . . . . . . . 867 Shots 25 | . 4 1 . 1 . 5 9 2 . . . 1 . . . . . . . 2 Rammed 8 | . . . . 2 . 1 1 . 4 . . . . . . . . . . . Targets Rammed 14 | . 3 . . 3 2 1 1 . 4 . . . . . . . . . . . Kicked 3 | . 3 . . . . . . . . . . . . . . . . . . . Crushed 3 | . . . . 1 2 . . . . . . . . . . . . . . . Highest Temperature 452 | 40 38 39 360 153 130 124 362 174 285 230 85 263 452 268 279 59 248 6 432 . Average Temperature 75 | 18 13 26 100 38 33 26 74 44 90 100 62 83 114 70 79 23 100 3 107 . Received Heat Transfer 5495 | 12 108 15 441 297 12 9 948 126 683 27 18 1155 90 308 150 . . 87 640 369 Effects 11 | . . . . . . . 2 . 1 . . 1 4 . . . . . 3 . Shutdowns 3 | . . . . . . . 1 . . . . . 1 . . . . . 1 . Energy Bleed 3 | . . . . . . . 1 . 1 . . 1 . . . . . . . . Interference 4 | . . . . . . . . . . . . . 3 . . . . . 1 . Damage (minor) 1 | . . . . . . . . . . . . . . . . . . . 1 . Siege Activations 1 | . . . . . . . . . . . . . . . . . 1 . . . Total Turns 4 | . . . . . . . . . . . . . . . . . 4 . . . Longest Duration 4 | . . . . . . . . . . . . . . . . . 4 . . . Martial Activations 7 | . . . . . . . . . . . . . . . . . . . 7 . Total Turns 302 | . . . . . . . . . . . . . . . . . . . 302 . Longest Duration 184 | . . . . . . . . . . . . . . . . . . . 184 . Shielding Activations . | . . . . . . . . . . . . . . . . . . . . . Robots Disrupted . | . . . . . . . . . . . . . . . . . . . . . Combat Hostiles . | . . . . . . . . . . . . . . . . . . . . . Robots Corrupted 11 | . . . . . . . 6 1 1 . . . 2 1 . . . . . . Combat Hostiles 10 | . . . . . . . 6 1 . . . . 2 1 . . . . . . Parts Fried 18 | . . . . . . 1 6 1 2 . . 4 1 2 . . 1 . . . Impact Corruptions 3 | . . . . . 1 . 1 . 1 . . . . . . . . . . . Robots Melted 1 | . . . . . . . . 1 . . . . . . . . . . . . Combat Hostiles 1 | . . . . . . . . 1 . . . . . . . . . . . . Parts Melted 28 | . . . 1 5 2 . 3 4 3 2 . . . . . . . . 8 . Heat Transferred 10184 | 100 150 74 814 2331 814 50 912 1455 1930 1150 . . . . . . . 74 . 330 Parts Sabotaged . | . . . . . . . . . . . . . . . . . . . . . Parts Stolen . | . . . . . . . . . . . . . . . . . . . . . Parts Stripped . | . . . . . . . . . . . . . . . . . . . . . Power Chain Reactions 5 | . . . . . . 2 3 . . . . . . . . . . . . . Alert | -11 -10 -10 -8 -8 -8 -6 -6 -5 -5 -5 -5 -5 -4 -4 -4 -4 -3 -3 -3 -3 ------- Run | Yrd Mat Sub Mat Sto Rec Fac Gar Fac Ext Cet Arc Hub Fac Upp Upp Zhi Pro Res Qua Frg Maximum Alert Level 4 | . 1 . . 1 . . 3 2 3 2 . 2 1 . . . . . . 4 Low Security (%) 84 | 100 86 . 100 82 100 100 30 36 27 . 100 95 92 . . . . 100 100 96 Level 1 10 | . 13 . . 17 . . 52 56 30 . . . 7 . . . . . . . Level 2 3 | . . . . . . . 10 7 14 100 . 4 . . . . . . . . Level 3 1 | . . . . . . . 6 . 27 . . . . . . . . . . . Level 4 . | . . . . . . . . . . . . . . . . . . . . 3 Level 5 . | . . . . . . . . . . . . . . . . . . . . . High Security . | . . . . . . . . . . . . . . . . . . . . . Max Security . | . . . . . . . . . . . . . . . . . . . . . Peak Influence 1159 | 20 244 . 123 221 75 121 771 428 1083 504 169 485 237 . . . . 60 92 1159 Initial 451 | . 9 . . . 75 112 . 404 106 451 169 50 237 . . . . . 10 . Average 98 | 3 140 . 15 123 12 43 314 229 460 451 155 118 105 . . . . 7 29 47 Influence Increases 9773 | 25 634 . 375 847 228 329 1081 736 1533 188 15 765 334 210 130 5 100 190 761 1287 Destroy 0b10 Robot/C 3980 | 20 340 . 240 400 . 80 560 320 580 160 . 220 160 180 100 . 60 100 320 140 Destroy 0b10 Robot/NC 265 | 5 25 . 20 25 65 5 . 10 20 10 . 25 . . 10 5 . 15 10 15 Destroy Leader 770 | . 78 . 44 118 . 22 40 102 42 . . 44 50 30 20 . 10 24 112 34 Allied During Kill 597 | . . . . 23 9 11 59 6 489 . . . . . . . . . . . Successful Hack 428 | . 6 . 28 33 51 . 10 74 33 . . 24 48 . . . . . 24 97 Select Force Hacks 120 | . 60 . . . 60 . . . . . . . . . . . . . . . Disable Machine 1005 | . 45 . . 75 30 90 30 45 135 . . 120 15 . . . . . 105 315 Anti-Garrison Action 250 | . . . . . . . 250 . . . . . . . . . . . . . Destroy Structure 1523 | . 65 . 13 53 13 6 87 134 54 18 . 242 46 . . . . 6 100 686 Advance Influence 100 | . . . . . . 100 . . . . . . . . . . . . . . Partial Spotted 90 | . . . . 15 . 15 . 15 . . . . . . . . . . 45 . Lose Combat Pursuer 645 | . 15 . 30 105 . . 45 30 180 . 15 90 15 . . . 30 45 45 . Influence Decreases 8634 | 10 525 124 375 652 393 359 310 1289 944 572 294 424 710 319 130 5 100 171 780 148 Entered New Map 1685 | . 6 60 . . 120 18 . 367 112 356 254 94 248 41 . . . . 9 . Time Decay 5341 | 10 509 54 330 622 270 201 . 592 422 206 40 270 452 248 110 5 70 171 651 108 Lost Part 540 | . 10 10 40 10 . 20 110 10 10 10 . 60 10 30 20 . 30 . 120 40 Lost Ally 760 | . . . . 20 . 120 200 20 400 . . . . . . . . . . . Purge Threat 308 | . . . 5 . 3 . . 300 . . . . . . . . . . . . Squads Dispatched 39 | . 5 . 7 1 . 4 . 2 2 . . 5 2 . . . . 7 3 1 Investigation 8 | . 2 . 1 . . 1 . . . . . 2 . . . . . 2 . . Extermination 6 | . . . . . . 1 . 2 . . . 1 1 . . . . . 1 . Reinforcement 17 | . 3 . 2 1 . 2 . . 1 . . 2 1 . . . . 2 2 1 Assault 1 | . . . . . . . . . 1 . . . . . . . . . . . Garrison 7 | . . . 4 . . . . . . . . . . . . . . 3 . . Intercept . | . . . . . . . . . . . . . . . . . . . . . Searches Triggered . | . . . . . . . . . . . . . . . . . . . . . Construction Impeded . | . . . . . . . . . . . . . . . . . . . . . Haulers Reinforced 2 | . . . . . . 1 . . . . . . . . . . . 1 . . Active Scanning Responses . | . . . . . . . . . . . . . . . . . . . . . Cargo Convoy Interrupts . | . . . . . . . . . . . . . . . . . . . . . Stealth | -11 -10 -10 -8 -8 -8 -6 -6 -5 -5 -5 -5 -5 -4 -4 -4 -4 -3 -3 -3 -3 --------- Run | Yrd Mat Sub Mat Sto Rec Fac Gar Fac Ext Cet Arc Hub Fac Upp Upp Zhi Pro Res Qua Frg Distress Signals 36 | . 3 . 4 6 2 . . 3 3 2 . 1 3 . . . . 6 2 1 Communications Jammed 11 | . . . . . . . . . . . . . . . . . . 11 . . Distress Signals 11 | . . . . . . . . . . . . . . . . . . 11 . . Times Spotted 315 | 1 32 4 17 35 5 4 27 22 40 9 5 18 20 10 5 . 3 23 24 11 Peak Tracking Total 10 | . 7 2 6 4 2 5 8 6 10 5 4 6 4 5 3 . 3 4 4 7 Tactical Retreats 26 | . 1 . 1 4 . . 2 2 5 . 1 5 1 . . . 1 2 1 . Traps | -11 -10 -10 -8 -8 -8 -6 -6 -5 -5 -5 -5 -5 -4 -4 -4 -4 -3 -3 -3 -3 ------- Run | Yrd Mat Sub Mat Sto Rec Fac Gar Fac Ext Cet Arc Hub Fac Upp Upp Zhi Pro Res Qua Frg Traps Triggered 31 | . 7 . . . . . 3 4 11 . . . 1 . . . . 1 4 . Indirectly . | . . . . . . . . . . . . . . . . . . . . . Trap Hack Attempts . | . . . . . . . . . . . . . . . . . . . . . Triggered . | . . . . . . . . . . . . . . . . . . . . . Disarmed . | . . . . . . . . . . . . . . . . . . . . . Reprogrammed . | . . . . . . . . . . . . . . . . . . . . . Reused . | . . . . . . . . . . . . . . . . . . . . . Traps Extracted . | . . . . . . . . . . . . . . . . . . . . . Installed . | . . . . . . . . . . . . . . . . . . . . . Triggered . | . . . . . . . . . . . . . . . . . . . . . Machines | -11 -10 -10 -8 -8 -8 -6 -6 -5 -5 -5 -5 -5 -4 -4 -4 -4 -3 -3 -3 -3 ---------- Run | Yrd Mat Sub Mat Sto Rec Fac Gar Fac Ext Cet Arc Hub Fac Upp Upp Zhi Pro Res Qua Frg Machines Disabled 75 | . 3 1 . 5 2 6 6 3 10 . . 8 1 . . 1 . . 8 21 Max in Single Turn 20 | . 1 1 . 2 1 6 2 1 1 . . 8 1 . . 1 . . 1 20 Garrison Access 2 | . . . . 1 . . . . . . . . . . . . . 1 . . Garrison Relay 2 | . . . . . . . 2 . . . . . . . . . . . . . Phase Generator 1 | . . . . . . . 1 . . . . . . . . . . . . . Network Hub 1 | . . . . . . . . . . . . 1 . . . . . . . . Machines Repaired . | . . . . . . . . . . . . . . . . . . . . . Machines Dismantled . | . . . . . . . . . . . . . . . . . . . . . Machines Sabotaged . | . . . . . . . . . . . . . . . . . . . . . Overloaded Fab Kills . | . . . . . . . . . . . . . . . . . . . . . Hacking | -11 -10 -10 -8 -8 -8 -6 -6 -5 -5 -5 -5 -5 -4 -4 -4 -4 -3 -3 -3 -3 --------- Run | Yrd Mat Sub Mat Sto Rec Fac Gar Fac Ext Cet Arc Hub Fac Upp Upp Zhi Pro Res Qua Frg Machines Accessed 97 | . 8 1 8 14 10 6 1 10 8 . 1 4 4 1 . 4 . 2 11 4 Terminals 62 | . 6 . 5 9 4 3 1 7 8 . . 4 2 . . . . . 10 3 Fabricators 4 | . . . . . . 2 . 1 . . . . 1 . . . . . . . Repair Stations 6 | . . . 1 2 . . . 1 . . . . 1 . . . . . . 1 Recycling Units 12 | . 2 . 2 2 5 . . . . . . . . . . . . 1 . . Scanalyzers 1 | . . . . . . . . . . . . . . . . . . . 1 . Garrison Access 4 | . . . . 1 . 1 . 1 . . . . . . . . . 1 . . Total Hacks 270 | . 25 1 26 41 33 13 2 22 17 . 1 11 15 1 . 17 . 3 28 14 Successful 140 | . 15 1 18 25 21 6 1 10 5 . 1 5 6 1 . 17 . 1 2 5 Failed 129 | . 10 . 8 15 12 7 1 12 12 . . 6 9 . . . . 2 26 9 Catastrophic 31 | . 1 . 2 1 1 3 . 5 2 . . 1 2 . . . . 1 10 2 Database Lockouts 1 | . . . . 1 . . . . . . . . . . . . . . . . Manual 112 | . 16 . 15 19 18 5 2 7 3 . . 10 5 . . . . . 8 4 Terminals 183 | . 19 . 19 29 15 9 2 17 17 . . 11 8 . . . . . 26 11 Fabricators 8 | . . . . . . 3 . 2 . . . . 3 . . . . . . . Repair Stations 21 | . . . 4 8 . . . 2 . . . . 4 . . . . . . 3 Recycling Units 29 | . 6 . 3 3 16 . . . . . . . . . . . . 1 . . Scanalyzers 2 | . . . . . . . . . . . . . . . . . . . 2 . Garrison Access 5 | . . . . 1 . 1 . 1 . . . . . . . . . 2 . . Terminal Hacks 64 | . 4 1 6 9 8 2 . 5 4 . 1 2 1 1 . 17 . . 1 2 Record 6 | . . . . . . . . . . . 1 . . . . 5 . . . . Part Schematic 6 | . . . . 2 . . . . . . . . . . . 4 . . . . Robot Schematic 1 | . . . 1 . . . . . . . . . . . . . . . . . Robot Analysis 7 | . 1 . . 1 1 . . . . . . . . . . 4 . . . . Prototype ID Bank 10 | . 1 . 1 . 2 1 . . . . . 1 . . . 4 . . . . Open Door 9 | . . . . 2 . . . 1 4 . . . . 1 . . . . 1 . Branch Access Points 3 | . . . 1 . . . . 1 . . . . 1 . . . . . . . Emergency Access Points 1 | . . . . . . . . . . . . . . . . . . . . 1 Terminal Index 1 | . . . . . . . . . . . . 1 . . . . . . . . Alert Level 2 | . . . 1 . 1 . . . . . . . . . . . . . . . Unreport Threat 4 | . . . 1 . 1 . . 2 . . . . . . . . . . . . Locate Traps 4 | . 2 . . 1 . 1 . . . . . . . . . . . . . . Maintenance Status 1 | . . . . 1 . . . . . . . . . . . . . . . . Zone Layout 6 | . . . 1 2 1 . . 1 . . . . . . . . . . . 1 Proto ID Catalog 1 | . . 1 . . . . . . . . . . . . . . . . . . Release Object 2 | . . . . . 2 . . . . . . . . . . . . . . . Fabricator Hacks 4 | . . . . . . 1 . 1 . . . . 2 . . . . . . . Network Status 3 | . . . . . . 1 . 1 . . . . 1 . . . . . . . Build 1 | . . . . . . . . . . . . . 1 . . . . . . . Repair Station Hacks 14 | . . . 4 5 . . . 2 . . . . 1 . . . . . . 2 Scan Component 8 | . . . 2 3 . . . 1 . . . . 1 . . . . . . 1 Repair 6 | . . . 2 2 . . . 1 . . . . . . . . . . . 1 Recycling Unit Hacks 10 | . 2 . 2 2 4 . . . . . . . . . . . . . . . Retrieve Components 10 | . 2 . 2 2 4 . . . . . . . . . . . . . . . Scanalyzer . | . . . . . . . . . . . . . . . . . . . . . Garrison Access Hacks 3 | . . . . 1 . 1 . . . . . . . . . . . 1 . . Unlock Access 1 | . . . . . . 1 . . . . . . . . . . . . . . Seal Access 2 | . . . . 1 . . . . . . . . . . . . . 1 . . Unauthorized Hacks 45 | . 9 . 6 8 9 2 1 2 1 . . 3 2 . . . . . 1 1 Terminals 39 | . 7 . 6 8 5 2 1 2 1 . . 3 2 . . . . . 1 1 Track 3 | . . . . 2 . . . . . . . 1 . . . . . . . . Botnet 16 | . 1 . 1 1 1 2 1 2 1 . . 2 2 . . . . . 1 1 Operators 1 | . 1 . . . . . . . . . . . . . . . . . . . Skim 19 | . 5 . 5 5 4 . . . . . . . . . . . . . . . Fabricators . | . . . . . . . . . . . . . . . . . . . . . Repair Stations . | . . . . . . . . . . . . . . . . . . . . . Recycling Units 6 | . 2 . . . 4 . . . . . . . . . . . . . . . Reject 1 | . . . . . 1 . . . . . . . . . . . . . . . Mask 1 | . . . . . 1 . . . . . . . . . . . . . . . Tunnel 4 | . 2 . . . 2 . . . . . . . . . . . . . . . Scanalyzers . | . . . . . . . . . . . . . . . . . . . . . Garrison Access . | . . . . . . . . . . . . . . . . . . . . . Data Cores Recovered . | . . . . . . . . . . . . . . . . . . . . . Used . | . . . . . . . . . . . . . . . . . . . . . Hacking Detections 74 | . 7 . 7 10 8 4 1 10 6 . . 3 4 . . . . 1 10 3 Full Trace Events 4 | . 1 . . . . 1 . . . . . 2 . . . . . . . . Feedback Events . | . . . . . . . . . . . . . . . . . . . . . Feedback Blocked . | . . . . . . . . . . . . . . . . . . . . . Robot Schematics Acquired 1 | . . . 1 . . . . . . . . . . . . . . . . . Robots Built . | . . . . . . . . . . . . . . . . . . . . . Authchips . | . . . . . . . . . . . . . . . . . . . . . Time . | . . . . . . . . . . . . . . . . . . . . . Total Robot Build Rating . | . . . . . . . . . . . . . . . . . . . . . Part Schematics Acquired 6 | . . . . 2 . . . . . . . . . . . 4 . . . . Parts Built . | . . . . . . . . . . . . . . . . . . . . . Authchips . | . . . . . . . . . . . . . . . . . . . . . Time 117 | . . . . . . . . . . . . . 117 . . . . . . . Total Part Build Rating . | . . . . . . . . . . . . . . . . . . . . . Parts Repaired 6 | . . . 2 2 . . . 1 . . . . . . . . . . . 1 Time 168 | . . . 58 52 . . . 22 . . . . . . . . . . . 36 Parts Recycled . | . . . . . . . . . . . . . . . . . . . . . Recycled Matter . | . . . . . . . . . . . . . . . . . . . . . Retrieved Matter . | . . . . . . . . . . . . . . . . . . . . . Retrieved Components 62 | . 16 . 20 20 6 . . . . . . . . . . . . . . . Parts Scanalyzed . | . . . . . . . . . . . . . . . . . . . . . Part Schematics Acquired . | . . . . . . . . . . . . . . . . . . . . . Parts Damaged . | . . . . . . . . . . . . . . . . . . . . . Bothacking | -11 -10 -10 -8 -8 -8 -6 -6 -5 -5 -5 -5 -5 -4 -4 -4 -4 -3 -3 -3 -3 ------------ Run | Yrd Mat Sub Mat Sto Rec Fac Gar Fac Ext Cet Arc Hub Fac Upp Upp Zhi Pro Res Qua Frg Used RIF Installer . | . . . . . . . . . . . . . . . . . . . . . Robots Hacked 6 | . . . . . . . 1 . 2 . 3 . . . . . . . . . Non-combat . | . . . . . . . . . . . . . . . . . . . . . Combat 6 | . . . . . . . 1 . 2 . 3 . . . . . . . . . Robot Hacks Applied 6 | . . . . . . . 1 . 2 . 3 . . . . . . . . . parse_system 6 | . . . . . . . 1 . 2 . 3 . . . . . . . . . Relay Couplers Released 11 | . . . . . . . 7 4 . . . . . . . . . . . . Machine Destruction 7 | . . . . . . . 7 . . . . . . . . . . . . . Programmers 4 | . . . . . . . . 4 . . . . . . . . . . . . Fabnet Peak Effective % . | . . . . . . . . . . . . . . . . . . . . . Robots Rewired 20 | . . . . . . . 9 . 11 . . . . . . . . . . . Allies Hacked 1 | . . . . . . . . 1 . . . . . . . . . . . . Hacks Repelled . | . . . . . . . . . . . . . . . . . . . . . Allies | -11 -10 -10 -8 -8 -8 -6 -6 -5 -5 -5 -5 -5 -4 -4 -4 -4 -3 -3 -3 -3 -------- Run | Yrd Mat Sub Mat Sto Rec Fac Gar Fac Ext Cet Arc Hub Fac Upp Upp Zhi Pro Res Qua Frg Total Allies 47 | . . . . 10 . . 11 . 26 . . . . . . . . . . . Largest Group 19 | . . . . 10 9 7 5 1 19 . . . . . . . . . . . Highest-Rated Group 692 | . . . . 173 157 125 160 80 692 . . . . . . . . . . . Highest-Rated Ally 159 | . . . . 29 29 29 85 80 159 . . . . . . . . . . . Initial Warlord ECA Mod 66 | . . . . . . . . 6 6 6 6 6 5 5 5 5 4 4 4 4 Total Orders 4 | . . . . . 2 . . . . . . . . . . . . 2 . . STAY 1 | . . . . . 1 . . . . . . . . . . . . . . . FOLLOW 1 | . . . . . 1 . . . . . . . . . . . . . . . EXPLORE 2 | . . . . . . . . . . . . . . . . . . 2 . . Ally Attacks 290 | . . . . 18 46 34 52 12 128 . . . . . . . . . . . Total Damage 5947 | . . . . 210 559 444 1881 418 2435 . . . . . . . . . . . Kills 46 | . . . . 2 9 3 13 2 17 . . . . . . . . . . . Allies Corrupted 1 | . . . . . . . . . 1 . . . . . . . . . . . Allies Melted 2 | . . . . . . 1 1 . . . . . . . . . . . . . Intel | -11 -10 -10 -8 -8 -8 -6 -6 -5 -5 -5 -5 -5 -4 -4 -4 -4 -3 -3 -3 -3 ------- Run | Yrd Mat Sub Mat Sto Rec Fac Gar Fac Ext Cet Arc Hub Fac Upp Upp Zhi Pro Res Qua Frg Active Infowar (turns) 20015 | 6 1332 49 1059 2257 1080 629 1141 1767 61 . . 594 1045 1617 877 399 1155 1377 3176 394 Optics 100 | . . . . . . . . . . . . . . . . . . 100 . . Sensors 12238 | . . . . . . . 925 1285 . . . 351 915 1458 806 399 1154 1375 3176 394 Structural 6672 | . . . . . . 481 139 1534 61 . . 344 1031 1617 658 . 807 . . . Seismic 6777 | 6 1332 49 1059 2257 1080 629 184 181 . . . . . . . . . . . . Machine Analysis 817 | . . . . . . 141 . . . . . 530 146 . . . . . . . Triangulation 1 | . . . . . . . . 1 . . . . . . . . . . . . Jamming 636 | . . . . . . . 275 335 . . . . . . . . 1 25 . . Robot Analysis Total 7 | . 1 . . 1 1 . . . . . . . . . . 4 . . . . Derelict Logs Recovered 3 | . . . . . . . . . . . . . . 1 2 . . . . . Drone Launches 4 | . . . . . . . . . . . . . . . . . . 4 . . Drone Recoveries 1 | . . . . . . . . . . . . . . . . . . 1 . . Exploration | -11 -10 -10 -8 -8 -8 -6 -6 -5 -5 -5 -5 -5 -4 -4 -4 -4 -3 -3 -3 -3 ------------- Run | Yrd Mat Sub Mat Sto Rec Fac Gar Fac Ext Cet Arc Hub Fac Upp Upp Zhi Pro Res Qua Frg Turns Passed 30246 | 116 1387 748 2421 2558 6168 630 1324 1863 1020 434 81 594 1129 1617 923 405 1170 1383 3881 394 Spaces Moved 14765 | 96 891 498 822 848 2771 539 745 941 920 204 52 289 511 727 412 170 556 690 1888 195 Core 41 | 41 . . . . . . . . . . . . . . . . . . . . Treads 8376 | . . . 602 848 1221 160 . 449 920 204 52 289 511 727 412 170 556 341 719 195 Legs 2616 | 55 891 11 157 . . . . . . . . . . . . . . 333 1169 . Wheels 2100 | . . 487 63 . 1550 . . . . . . . . . . . . . . . Hover 1632 | . . . . . . 379 745 492 . . . . . . . . . 16 . . Flight . | . . . . . . . . . . . . . . . . . . . . . Fastest Speed 50 | 50 120 110 130 160 89 97 93 77 77 77 143 138 138 192 192 192 192 92 92 153 Average Speed 147 | 90 120 130 211 243 142 97 108 150 77 77 143 139 176 192 192 192 192 143 121 153 Slowest Speed 400 | 120 190 150 400 246 247 97 150 185 77 143 143 143 192 192 192 192 192 204 184 153 Overloaded Moves 99 | . . . . . . . 20 . . . . . . . . . . . 79 . Propulsion Burnouts 1 | . . . . . . . 1 . . . . . . . . . . . . . Robots Hopped . | . . . . . . . . . . . . . . . . . . . . . Potential Cave-ins . | . . . . . . . . . . . . . . . . . . . . . Cave-ins Triggered . | . . . . . . . . . . . . . . . . . . . . . Teleports 1 | . . . . . . . . . . . . . . . . . . 1 . . Exploration Rate (%) 55 | 5 100 31 64 96 99 16 71 29 85 56 67 36 14 84 53 60 71 22 96 9 Regions Visited 20 Branch Regions 13 Pre-discovered Areas 12 | . 2 . 3 1 2 . . . . . . . . 1 . 3 . . . . Known Exits Taken 15 | . . . 1 . 1 1 . 1 1 1 1 1 1 1 1 1 1 1 1 . Unknown Exits Taken 4 | 1 1 1 . 1 . . . . . . . . . . . . . . . . Scrap Searched 12 | . . 5 . . . . . . . . . . . 3 1 . 3 . . . Spaces Dug 177 | . 20 1 . 19 6 5 13 35 . . . 5 7 20 5 . 8 4 28 1 Terrain Destroyed 1190 | . 71 37 11 45 13 5 106 62 28 8 . 200 22 63 19 . 12 4 55 429 Melee 35 | . . . . . . 2 1 2 . . . 1 . 4 2 . 1 3 19 . Projectile 219 | . 1 2 11 21 13 1 . 32 17 8 . 21 22 4 17 . 11 1 34 3 AOE 934 | . 70 35 . 24 . 2 105 28 11 . . 178 . 55 . . . . . 426 Terrain Rammed . | . . . . . . . . . . . . . . . . . . . . . Walls Destroyed . | . . . . . . . . . . . . . . . . . . . . . Machines Disabled . | . . . . . . . . . . . . . . . . . . . . . Actions | -11 -10 -10 -8 -8 -8 -6 -6 -5 -5 -5 -5 -5 -4 -4 -4 -4 -3 -3 -3 -3 --------- Run | Yrd Mat Sub Mat Sto Rec Fac Gar Fac Ext Cet Arc Hub Fac Upp Upp Zhi Pro Res Qua Frg Total 22107 | 113 1123 573 1433 1229 5003 636 1154 1304 1150 417 57 431 681 901 482 247 641 1028 3218 286 Wait 5033 | 5 141 32 468 214 1962 30 173 135 87 147 . 44 61 103 5 53 49 188 1060 76 Move 14745 | 95 890 497 821 847 2770 539 743 940 919 203 51 288 510 726 411 169 555 689 1887 195 Hop . | . . . . . . . . . . . . . . . . . . . . . Pick Up 371 | 2 10 15 28 16 102 17 32 37 13 11 . 11 15 7 3 6 5 28 13 . Fast Attach 143 | 6 12 2 15 17 1 3 3 12 1 4 . 5 6 7 3 3 4 11 27 1 Attach 83 | . 2 1 5 1 . 7 8 7 1 2 . 6 6 2 4 1 2 10 13 5 Detach 79 | . 2 1 4 1 10 3 4 8 . 2 . 2 9 5 3 . . 12 11 2 Swap 200 | . 12 7 14 41 1 5 23 23 9 1 1 16 10 6 6 . 2 5 18 . Drop 431 | . 8 3 34 36 117 16 30 46 12 12 . 17 19 5 1 8 6 31 29 1 Fire 757 | 5 43 15 44 53 38 12 77 54 80 35 5 39 44 35 36 7 17 24 88 6 Melee 167 | . . . . . . 2 32 14 . . . 2 . 5 9 . 1 30 72 . Ram 2 | . . . . . . 1 1 . . . . . . . . . . . . . Kick 3 | . 3 . . . . . . . . . . . . . . . . . . . Crush 9 | . . . . 3 2 . . . 4 . . . . . . . . . . . Escape Stasis 70 | . . . . . . . 26 26 18 . . . . . . . . . . . Rewire 7 | . . . . . . . 1 . 6 . . . . . . . . . . . Trap . | . . . . . . . . . . . . . . . . . . . . . Miscellaneous 7 | . . . . . . 1 1 2 . . . 1 1 . 1 . . . . . Route ------- -11/Scrapyard -10/Materials (discovered 5 exits: [*Mat x3] / [*Min] / *Sub) -10/Subcaves -8/Materials (discovered 4 exits: *Fac x3 / *Sto) -8/Storage (discovered 2 exits: *Fac / *Rec) -8/Recycling -6/Factory (discovered 2 exits: Low / Gar) -6/Garrison (discovered 2 exits: *Fac x2) -5/Factory (discovered 6 exits: *Fac x2 / Upp x2 / *Ext x2) -5/Extension (discovered 2 exits: *Fac / *Cet) -5/Cetus (discovered 2 exits: *Fac / *Arc) -5/Archives -5/Hub_04(d) (discovered 2 exits: *Fac x2) -4/Factory (discovered 2 exits: *Upp x2) -4/Upper Caves -4/Upper Caves -4/Zhirov -3/Proximity Caves -3/Research (discovered 2 exits: *Res / *Qua) -3/Quarantine (discovered 3 exits: *Res / *Sec / *Frg) -3/Protoforge History --------- Turn | Location | Event 2 | -11/Scrapyard | Met Revision 17 79 | -11/Scrapyard | Discovered new exit (range 8) 117 | -11/Scrapyard | Entered Materials 212 | -10/Materials | Discovered new exit (range 15) 316 | -10/Materials | Build established: Mutant 364 | -10/Materials | Discovered new exit (range 16) 563 | -10/Materials | Discovered new exit (range 10) 933 | -10/Materials | Discovered new exit (range 7) 1310 | -10/Materials | Discovered new exit (range 10) 1504 | -10/Materials | Entered Subcaves 1556 | -10/Subcaves | Ambushed by Subdwellers from Twisted Machinery 1918 | -10/Subcaves | Visited 4L-MR0's lab 1934 | -10/Subcaves | Found Cargo Legs 1986 | -10/Subcaves | Build established: Scavenger-Mutant 2004 | -10/Subcaves | A swath of the cavern ceiling suddenly collapsed 2122 | -10/Subcaves | Discovered new exit (range 8) 2252 | -10/Subcaves | Entered Materials 2252 | -8/Materials | Evolved 4 slots: Propulsion x3, Utility x1 2429 | -8/Materials | Lost 4 parts (1p2n1w) 2645 | -8/Materials | Garrison activated, responded to threat 3080 | -8/Materials | Met 7R-MNS 3140 | -8/Materials | Discovered new exit (range 13) 3207 | -8/Materials | Discovered new exit (range 15) 3207 | -8/Materials | Identified exit to Storage 3537 | -8/Materials | Repaired Spk. Treads 3566 | -8/Materials | Repaired Lgt. Treads 3985 | -8/Materials | Learned location of Zion (-6) 4023 | -8/Materials | Discovered new exit (range 3) 4063 | -8/Materials | Learned Storage trap positions 4133 | -8/Materials | Learned location of Extension (-5) 4193 | -8/Materials | Learned Factory recycling unit intel 4224 | -8/Materials | Garrison activated, responded to threat 4244 | -8/Materials | Identified exit to Factory 4284 | -8/Materials | Learned Storage emergency access door positions 4673 | -8/Materials | Entered Storage 4675 | -8/Storage | Loaded intel: 18 trap records 4911 | -8/Storage | Central database locked down 4957 | -8/Storage | Learned location of 1 exit from Extension 5035 | -8/Storage | Learned 4 Lower Caves zone layouts 5043 | -8/Storage | Learned Factory stockpile data 5044 | -8/Storage | Learned location of 1 exit from Extension 5050 | -8/Storage | Learned Factory security intel 5091 | -8/Storage | Learned Storage trap positions 6039 | -8/Storage | Repaired Hcp. Storage Unit 6066 | -8/Storage | Repaired Lgt. Armor Plating 6751 | -8/Storage | Assisted by bots powering up and referring to "LRC-V3" 7043 | -8/Storage | Build established: Commander-Mutant 7199 | -8/Storage | Used back door to open Recycling access 7199 | -8/Storage | Discovered new exit (range 5) 7231 | -8/Storage | Entered Recycling 7231 | -8/Recycling | Accompanied by 9 allies 7232 | -8/Recycling | Identified exit to Factory 8303 | -8/Recycling | Entered Scraplab 8311 | -8/Recycling | Found Prototype Device 8311 | -8/Recycling | Identified Scrap Engine 8922 | -8/Recycling | Build established: Commander-Construct 13399 | -8/Recycling | Entered Factory 13399 | -6/Factory | Accompanied by 7 allies 13399 | -6/Factory | Evolved 4 slots: Power x1, Utility x2, Weapon x1 13400 | -6/Factory | Identified exit to Lower Caves 13403 | -6/Factory | Loaded intel: 8 recycling unit locations 13728 | -6/Factory | Spotted B-75 Beast 13765 | -6/Factory | Build established: Construct 14029 | -6/Factory | Identified exit to Garrison 14029 | -6/Factory | Entered Garrison 14090 | -6/Garrison | Triggered checkpoint 14118 | -6/Garrison | Garrison Relay disabled 14141 | -6/Garrison | Phase Generator disabled 14186 | -6/Garrison | Spotted B-75 Beast 14196 | -6/Garrison | Spotted B-90 Cyclops 14218 | -6/Garrison | Rewired B-75 Beast 14238 | -6/Garrison | Destroyed B-75 Beast 14277 | -6/Garrison | System corruption reached 10% 14344 | -6/Garrison | Destroyed B-90 Cyclops 14452 | -6/Garrison | Spotted B-75 Beast 14541 | -6/Garrison | Destroyed B-75 Beast 14609 | -6/Garrison | Triggered checkpoint 14678 | -6/Garrison | Discovered new exit (range 5) 14683 | -6/Garrison | Attempted to access garrison exit controls, blocked by remote lockdown 14798 | -6/Garrison | Lost 6 parts (1n2u3w) 14891 | -6/Garrison | Lost 8 allies 15086 | -6/Garrison | Core integrity fell below 50% 15127 | -6/Garrison | Triggered checkpoint 15135 | -6/Garrison | Garrison Relay disabled 15146 | -6/Garrison | Found embedded Infiltrators 15328 | -6/Garrison | Discovered new exit (range 14) 15353 | -6/Garrison | Entered Factory 15353 | -5/Factory | Accompanied by 1 ally 15353 | -5/Factory | Evolved 2 slots: Utility x2 15780 | -5/Factory | Identified exit to Upper Caves 15780 | -5/Factory | Identified exit to Extension 16246 | -5/Factory | Discovered new exit (range 15) 16323 | -5/Factory | Identified exit to Factory 16727 | -5/Factory | Repaired Imp. Medium Armor Plating 16834 | -5/Factory | Discovered exit to Factory (range 4) 17216 | -5/Factory | Entered Extension 17217 | -5/Extension | Identified exit to Cetus 17234 | -5/Extension | Disrupted transfer network 17413 | -5/Extension | Rescued A7 17473 | -5/Extension | Rescued a captive Derelict 17476 | -5/Extension | Rescued a captive Derelict 17492 | -5/Extension | Rescued a captive Derelict 17497 | -5/Extension | Rescued a captive Derelict 17500 | -5/Extension | Rescued a captive Derelict 17502 | -5/Extension | Rescued a captive Derelict 17513 | -5/Extension | Rescued a captive Derelict 17515 | -5/Extension | Rescued a captive Derelict 17528 | -5/Extension | Rescued a captive Derelict 17529 | -5/Extension | Rescued a captive Derelict 17553 | -5/Extension | Rescued a captive Derelict 17670 | -5/Extension | Spotted B-75 Beast 17681 | -5/Extension | Destroyed B-75 Beast 17727 | -5/Extension | Spotted B-75 Beast 17747 | -5/Extension | Allies destroyed B-75 Beast 17779 | -5/Extension | Lost 4 allies 17865 | -5/Extension | Build established: Commander-Construct 17991 | -5/Extension | Destroyed 7 combat bots 18001 | -5/Extension | Rescued a captive Derelict 18032 | -5/Extension | Rescued a captive Derelict 18116 | -5/Extension | First assault squad dispatched 18121 | -5/Extension | Rescued a captive Derelict 18175 | -5/Extension | Destroyed A7 18180 | -5/Extension | Extracted ID and sensor layout for unrecognized location from A7's data core 18211 | -5/Extension | Lost 17 allies 18236 | -5/Extension | Entered Cetus 18254 | -5/Cetus | Spotted Cetus Guard 18255 | -5/Cetus | Spotted Cetus Guard 18263 | -5/Cetus | Destroyed Cetus Guard 18263 | -5/Cetus | Spotted Cetus Guard 18269 | -5/Cetus | Destroyed Cetus Guard 18272 | -5/Cetus | Spotted Cetus Guard 18281 | -5/Cetus | Destroyed Cetus Guard 18298 | -5/Cetus | Destroyed Cetus Guard 18488 | -5/Cetus | Discovered new exit (range 16) 18502 | -5/Cetus | Spotted Cetus Guard 18502 | -5/Cetus | Spotted Cetus Guard 18504 | -5/Cetus | Destroyed Cetus Guard 18505 | -5/Cetus | Build established: Construct 18506 | -5/Cetus | Spotted Cetus Guard 18528 | -5/Cetus | Destroyed Cetus Guard 18540 | -5/Cetus | Destroyed Cetus Guard 18541 | -5/Cetus | Spotted Cetus Guard 18561 | -5/Cetus | Destroyed Cetus Guard 18574 | -5/Cetus | Discovered exit to Factory (range 15) 18578 | -5/Cetus | Met Revision 17 18661 | -5/Cetus | Identified exit to Archives 18670 | -5/Cetus | Entered Archives 18686 | -5/Archives | Met Zhirov 18692 | -5/Archives | Reinforcements dispatched to Archives 18702 | -5/Archives | Unable to access archive contents 18728 | -5/Archives | Read partially decrypted archive contents 18731 | -5/Archives | Discovered new exit (range 15) 18737 | -5/Archives | Reinforcements dispatched to Archives 18739 | -5/Archives | Zhirov warped through subspace 18750 | -5/Archives | Identified exit to Hub_04(d) 18751 | -5/Archives | Entered Hub_04(d) 18831 | -5/Hub_04(d) | Discovered exit to Factory (range 9) 19262 | -5/Hub_04(d) | Discovered exit to Factory (range 13) 19290 | -5/Hub_04(d) | Core integrity fell below 50% 19320 | -5/Hub_04(d) | Network Hub disabled 19321 | -5/Hub_04(d) | System corruption reached 10% 19330 | -5/Hub_04(d) | Lost 5 parts (1p2u2w) 19345 | -5/Hub_04(d) | Entered Factory 19345 | -4/Factory | Evolved 2 slots: Weapon x2 20334 | -4/Factory | System corruption reached 10% 20439 | -4/Factory | Identified exit to Upper Caves 20474 | -4/Factory | Entered Upper Caves 20546 | -4/Upper Caves | Met a Warlord Commander 20548 | -4/Upper Caves | Warlord Commander delivered Encrypted Comm Array 20554 | -4/Upper Caves | Found Encrypted Comm Array 20590 | -4/Upper Caves | Build established: Scavenger-Construct 20648 | -4/Upper Caves | Learned Research emergency access door positions 20649 | -4/Upper Caves | Attracted the attention of an 0b10 checkpoint 20710 | -4/Upper Caves | Lost 3 parts (3w) 21048 | -4/Upper Caves | Build established: Construct 22079 | -4/Upper Caves | Discovered new exit (range 8) 22089 | -4/Upper Caves | Identified exit to Upper Caves 22091 | -4/Upper Caves | Entered another Upper Caves area 22369 | -4/Upper Caves | Learned location of 1 exit from Research 22454 | -4/Upper Caves | Build established: Assassin 22907 | -4/Upper Caves | Discovered new exit (range 15) 22979 | -4/Upper Caves | Identified exit to Zhirov 23014 | -4/Upper Caves | Entered Zhirov 23014 | -4/Zhirov | Discovered new exit (range 3) 23044 | -4/Zhirov | Build established: Mutant 23091 | -4/Zhirov | Learned location of Quarantine (-3) 23091 | -4/Zhirov | Learned location of Testing (-2) 23132 | -4/Zhirov | Found Alien Artifact 23132 | -4/Zhirov | Identified Integrated Dissipator 23132 | -4/Zhirov | Installed Integrated Dissipator, increased core heat dissipation (+20) 23157 | -4/Zhirov | Found Alien Artifact 23418 | -4/Zhirov | Identified exit to Proximity Caves 23419 | -4/Zhirov | Entered Proximity Caves 23725 | -3/Proximity Caves | Build established: Assassin 24279 | -3/Proximity Caves | Lost 3 parts (1p1u1w) 24523 | -3/Proximity Caves | Build established: Mutant 24552 | -3/Proximity Caves | Discovered new exit (range 8) 24564 | -3/Proximity Caves | Identified exit to Research 24589 | -3/Proximity Caves | Entered Research 24589 | -3/Research | Evolved 2 slots: Utility x2 24590 | -3/Research | Identified exit to Quarantine 24591 | -3/Research | Identified exit to Research 24754 | -3/Research | Garrison activated, responded to threat 24756 | -3/Research | Identified Transdimensional Reconstructor 24756 | -3/Research | Warped through subspace 24789 | -3/Research | Revision forces began assault on 0b10 24790 | -3/Research | Lost 8 parts (1p4u3w) 24834 | -3/Research | Met up with Revision 17++ 25289 | -3/Research | Research terminal network offline 25393 | -3/Research | Found Prototype Processor 25393 | -3/Research | Identified Exp. Signal Interpreter 25429 | -3/Research | Spotted B-90 Cyclops 25443 | -3/Research | Destroyed B-90 Cyclops 25795 | -3/Research | Spotted Striker 25897 | -3/Research | Destroyed Striker 25972 | -3/Research | Entered Quarantine 26086 | -3/Quarantine | Found Alien Artifact 26216 | -3/Quarantine | Build established: Construct 26256 | -3/Quarantine | Found Alien Energy Cannon 26256 | -3/Quarantine | Identified Core Cannon 26288 | -3/Quarantine | Discovered exit to Research (range 12) 26294 | -3/Quarantine | Cryocooling Duct disabled 26309 | -3/Quarantine | Ambient heat levels rising (+20) 26309 | -3/Quarantine | Non-combat units ordered to evacuate 26504 | -3/Quarantine | Cryocooling Duct disabled 26519 | -3/Quarantine | Ambient heat levels rising (+20) 26519 | -3/Quarantine | Combat units ordered to evacuate 26619 | -3/Quarantine | Quarantine Guard activated 26818 | -3/Quarantine | Spotted Quarantine Guard 26836 | -3/Quarantine | Destroyed Quarantine Guard 26921 | -3/Quarantine | Cryocooling Duct disabled 26936 | -3/Quarantine | Ambient heat levels rising (+20) 26981 | -3/Quarantine | Spotted Quarantine Guard 27157 | -3/Quarantine | Spotted Quarantine Guard 27189 | -3/Quarantine | Found Alien Artifact 27189 | -3/Quarantine | Identified Core Reset Matrix 27189 | -3/Quarantine | Identified Subatomic Replicator 27189 | -3/Quarantine | Used Core Reset Matrix 27193 | -3/Quarantine | Detected hypermatrix surge 27193 | -3/Quarantine | Sensed 5 artifacts in vicinity 27238 | -3/Quarantine | Spotted Quarantine Guard 27311 | -3/Quarantine | Spotted Quarantine Guard 27345 | -3/Quarantine | Core integrity fell below 50% 27358 | -3/Quarantine | Destroyed Quarantine Guard 27491 | -3/Quarantine | Spotted Quarantine Guard 27521 | -3/Quarantine | Found Sigix Terminator 27602 | -3/Quarantine | Spotted Quarantine Guard 27641 | -3/Quarantine | Destroyed Quarantine Guard 27832 | -3/Quarantine | Destroyed Quarantine Guard 27853 | -3/Quarantine | Spotted Quarantine Guard 27884 | -3/Quarantine | Destroyed Quarantine Guard 28037 | -3/Quarantine | Destroyed Quarantine Guard 28115 | -3/Quarantine | Spotted Quarantine Guard 28129 | -3/Quarantine | Destroyed Quarantine Guard 28393 | -3/Quarantine | Discovered exit to Research (range 6) 28432 | -3/Quarantine | Build established: Scavenger-Gunner 28485 | -3/Quarantine | Spotted Fortress 28548 | -3/Quarantine | Destroyed Fortress 28571 | -3/Quarantine | Found Prototype Device 28571 | -3/Quarantine | Identified Exp. Force Field 28880 | -3/Quarantine | Build established: Scavenger-Tank 29342 | -3/Quarantine | Spotted Quarantine Guard 29377 | -3/Quarantine | Destroyed Quarantine Guard 29476 | -3/Quarantine | Destroyed Quarantine Guard 29838 | -3/Quarantine | Discovered new exit (range 5) 29838 | -3/Quarantine | Discovered new exit (range 6) 29838 | -3/Quarantine | Spotted Quarantine Guard 29838 | -3/Quarantine | Spotted Quarantine Guard 29844 | -3/Quarantine | Identified exit to Section 7 29848 | -3/Quarantine | Core integrity fell below 20% 29851 | -3/Quarantine | Identified exit to Protoforge 29853 | -3/Quarantine | Entered Protoforge 29854 | -3/Protoforge | Sensed 2 artifacts in vicinity 29882 | -3/Protoforge | Lost 4 parts (1u3w) 29975 | -3/Protoforge | Repaired Centrium Medium Armor Plating? 30141 | -3/Protoforge | Build established: Mutant 30204 | -3/Protoforge | Spotted Hotshot 30204 | -3/Protoforge | Spotted Hotshot 30204 | -3/Protoforge | Spotted Hotshot 30204 | -3/Protoforge | Spotted Hotshot 30204 | -3/Protoforge | Superfortress began startup sequence 30234 | -3/Protoforge | Fired Sigix Terminator 30234 | -3/Protoforge | Destroyed Hotshot 30234 | -3/Protoforge | Destroyed Hotshot 30234 | -3/Protoforge | Destroyed Hotshot 30234 | -3/Protoforge | Destroyed Hotshot 30234 | -3/Protoforge | Destroyed Hotshot 30234 | -3/Protoforge | Destroyed Hotshot 30234 | -3/Protoforge | Spotted Hotshot 30234 | -3/Protoforge | Spotted Hotshot 30234 | -3/Protoforge | Destroyed B-86 Titan 30243 | -3/Protoforge | Spotted Overlord 30247 | -3/Protoforge | Destroyed by Y-72 Warden with Railgun Last Messages --------------- destabilization (-6). 30234_ Destroyed Quantum-Nuclear Reactor. 30234_ Metamorphosis Tank disabled. 30234_ W-44 Eye destroyed. 30234_ Destroyed Unknown Reactor. 30234_ W-44 Eye destroyed. 30234_ ALERT: Hostile activity reported, dispatching reinforcements to area. 30235_ Critical hit (Burn: +37). 30238_ Treaded Armored-Reflex Exoskeleton destroyed. 30238_ Treaded Armored-Reflex Exoskeleton core remains intact and functional. 30240_ The unstable cave ceiling collapses. 30245_ Hotshot activates shielding mode. 30245_ Penetrated by Slug. 30247_ Arm. Scrap Engine destroyed. 30247_ Scrap Engine core remains intact and functional. 30247_ Critical hit (Blast). Map ----- +----------------------------------------------------+ | ?????????????????????????????????????????????????? | | ?????????????????????????????????????????????????? | | ?????????????????????????????????????????????????? | | ?????????????????????????????????????????????????? | | ?????????????????????????????????????????????????? | | ?????????????????????????????????????????????????? | | ?????????????????????????????????????????????????? | | ?????????????????????????????????????????????????? | | ?????????????????????????????????????????????????? | | ?????????????????????????????????????????????????? | | ??????????????????????? ;?????????????????????? | | ????????????????????? ; ;???????????????????? | | ??????????????????;;;;;;;;;;;;; ????????????????? | | ???????????????? ; ;; ??????????????? | | ??????????????; ; ;; ????????????? | | ????????????? ; ; ;;;;;;;;????????????? | | ????????????" ; ; ; H ???????????? | | ??????????? " ;;;;;;; ; ???????????? | | ??????????"";;;;;;;;; g ; ??????????? | | ????????? ;; ; ??????????? | | ????????? ;; g ; ;;;;;??????????? | | ???????? ;; ;;;;##?????????? | | ???????? ; ; ?????????? | | ??????? ; ; ""?????????? | | ??????? ; ""??????????? | | ??????? @ ; ""??????????? | | ??????"""";;;;;;;;; ; ""??????????? | | ?????? % ; ????????? | | ????? ; ;;####?????????? | | ?????""""" ; %% ; ??????????? | | ????? " " ; ; ??????????? | | ????? " " ; ; ??????????? | | ??? " ; ; ;; # ??????????? | | ???? " " ; ;; + """??????????? | | "??" " " ; ;; # """??????????? | | """" " " ; ;; # """??????????? | | """" """"";;;;;;;;;;;;;;## # ??????????? | | """" ####???????????? | | ^ #??# ??????????? | | #??# ??????????? | | #??# ??????????? | | ######+######+#############+####### ??????????? | | #??# # ## ? ??????????? | | #### """ + ""## """"""" ####??????????? | | # ""T"" # """" ""## """"""" #?????????????? | | # "" "" # """" ""## """"""" #?????????????? | | + # """" T## #?????????????? | | # """ + """" ""## #?????????????? | | "###### """ # ""## #?????????????? | | "#????# """ # ""## #?????????????? | +----------------------------------------------------+ Best States ------------- Heat Dissipation 97 Coolant Potential 120 Energy Generation 42 Energy Capacity 585 Matter Stores 553 Matter Capacity 700 Sight Range 20 Robot Scan Range 16 Terrain Scan Density 10 Jamming Range 16 Base Temperature (-) 200 Armor Coverage 675 Resistance: TH 25 Resistance: EM 25 Point Defense Rating 240 Phase Shifting 10 Evasion (%) 56 Target Analysis 8 Core Analysis 6 Recoil Reduction 5 Kinecelleration 40 Item Schematics ----------------- None Robot Schematics ------------------ None Fabricated ------------ Nothing Repaired ---------- Spk. Treads | 10% | -8/Materials Lgt. Treads | 50% | -8/Materials Hcp. Storage Unit | 55% | -8/Storage Lgt. Armor Plating | 46% | -8/Storage Imp. Medium Armor Plating | 38% | -5/Factory Centrium Medium Armor Plating | 59% | -3/Protoforge Alien Tech Used ----------------- Integrated Dissipator Transdimensional Reconstructor Core Cannon Core Reset Matrix Sigix Terminator Achievements -------------- Left-hand Path Challenges ------------ None Game ------ Seed CargoMinesnifferBay Manual? 0 Play Time 04:20:09 Cumulative 502.5 hours Start 2025.06.28 @ 22:51:15 End 2025.07.01 @ 01:53:08 Sessions 5 Manual Loads 0 Difficulty Rogue Special Mode None Game No. 266 Rogue 203 Adventurer 63 Explorer 0 Win Type - Total 9 Types 8/0/0/1/0/0/0/0/0/0 Lore% 90 Gallery% 81 Achievement% 67 Wizard Run 0 Options --------- Layout 2 ASCII 0 Keyboard 1 Movement Numpad Keybinds 0 Fullscreen 2 Font 24/Terminus Map View 50x44 Zoom Use 0% Tactical HUD 1 Map Filters NONE Filters NONE Steam 1 RUN: e5eba93d-ee23-4e4a-942a-c4d3fd6bd977